bitfinex/quotes_SOLUSD_20241010
["timestamp","ask_amount","ask_price","bid_price","bid_amount"]
[1728578104742,13.6676,138.51,138.46,7.2222]
[1728578105051,7.2198,138.51,138.47,1.44408352]
[1728578105345,8.0724799,138.5,138.45,25.2788]
[1728578105849,0.8522799,138.5,138.46,7.2221]
[1728578106132,0.8522799,138.5,138.48,7.2211]
[1728578106434,0.8522799,138.5,138.47,7.2216]
[1728578107922,0.8522799,138.5,138.45,18.0565]
[1728578107923,7.2207,138.49,138.45,18.0565]
[1728578108132,7.2216,138.48,138.43,27.2237]
[1728578108522,7.2216,138.48,138.43,7.2237]
[1728578108917,7.2216,138.48,138.44,7.2231]
[1728578109417,0.8522799,138.5,138.42,18.0602]
[1728578109418,7.2223,138.46,138.42,25.2844]
[1728578110027,7.2219,138.47,138.42,18.0602]
[1728578110240,7.2219,138.47,138.43,7.2236]
[1728578110536,7.2208,138.49,138.45,7.2228]
[1728578110741,7.2208,138.49,138.46,1.44412774]
[1728578110912,0.8522799,138.5,138.46,1.44412774]
[1728578111118,8.0724799,138.5,138.46,8.66632774]
[1728578111423,0.8522799,138.5,138.46,1.44412774]
[1728578111637,7.2209,138.49,138.45,7.2228]
[1728578111960,1.447719,138.49,138.41,24.6756]
[1728578112346,7.2222,138.47,138.42,8.66851465]
[1728578112516,7.2224,138.46,138.42,1.44441465]
[1728578112718,7.2224,138.46,138.41,31.9003]
[1728578112918,7.2248,138.42,138.38,25.2913]
[1728578113157,7.2251,138.41,138.37,13.4636]
[1728578113318,7.2243,138.42,138.38,7.2263]
[1728578114132,7.2249,138.41,138.37,25.2939]
[1728578114352,1.447719,138.45,138.35,16.0854]
[1728578114353,7.2261,138.39,138.35,23.3133]
[1728578114529,1.447719,138.45,138.34,24.3072]
[1728578114530,7.577619,138.43,138.34,25.2988]
[1728578114719,7.226,138.39,138.35,8.67307077]
[1728578115621,7.226,138.39,138.34,25.2988]
[1728578116016,7.226,138.39,138.35,8.67307541]
[1728578116540,7.225,138.41,138.37,7.2266]
[1728578117237,7.225,138.41,138.36,49.197974]
[1728578118119,7.2259,138.39,138.35,7.2279]
[1728578118333,7.2259,138.39,138.36,1.44515159]
[1728578118529,1.447719,138.42,138.36,8.67255159]
[1728578118752,7.2252,138.41,138.36,7.2274]
[1728578119050,7.2245,138.42,138.38,7.2263]
[1728578119222,7.2245,138.42,138.37,18.067]
[1728578119425,21.447719,138.45,138.36,31.129674]
[1728578119426,7.2255,138.4,138.36,31.129674]
[1728578120022,7.225,138.41,138.37,7.2269]
[1728578120240,7.225,138.41,138.38,1.44497777]
[1728578120429,7.2245,138.42,138.38,8.67097777]
[1728578121129,7.2249,138.41,138.37,7.2268]
[1728578121833,7.2265,138.38,138.34,7.2284]
[1728578122333,1.447719,138.42,138.31,22.3222]
[1728578122334,7.2278,138.36,138.32,7.2294]
[1728578122549,7.228,138.35,138.31,29.5522]
[1728578123135,7.2275,138.36,138.32,8.6746714]
[1728578123642,19.512719,138.39,138.33,7.229]
[1728578123647,7.2271,138.37,138.33,7.229]
[1728578123850,7.2271,138.37,138.34,1.44544578]
[1728578124231,16.4698,138.4,138.34,8.67354578]
[1728578124458,7.2265,138.38,138.35,7.228]
[1728578124641,7.2265,138.38,138.36,1.44350527]
[1728578125249,7.2261,138.39,138.36,1.44350527]
[1728578125449,7.2249,138.41,138.37,7.2265]
[1728578125655,17.344019,138.44,138.38,1.44495615]
[1728578125839,17.344019,138.44,138.35,46.0962762]
[1728578126040,17.344019,138.44,138.38,18.0655]
[1728578126351,7.2234,138.44,138.4,7.2253]
[1728578126550,1.447719,138.47,138.41,1.44476492]
[1728578126755,7.2221,138.47,138.43,7.2238]
[1728578126934,7.2221,138.47,138.44,1.44441125]
[1728578127134,7.2214,138.48,138.44,1.44441125]
[1728578127641,7.2214,138.48,138.44,8.66761125]
[1728578128140,7.2214,138.48,138.44,1.44441125]
[1728578128338,7.2214,138.48,138.44,7.2233]
[1728578128541,7.2214,138.48,138.45,1.44428121]
[1728578129058,7.2211,138.49,138.44,7.2233]
[1728578129245,8.0725799,138.5,138.45,1.44416835]
[1728578129447,0.8522799,138.5,138.46,7.2222]
[1728578129638,0.8522799,138.5,138.47,8.66559029]
[1728578130047,0.8522799,138.5,138.47,1.44409029]
[1728578130244,0.8522799,138.5,138.46,18.18069]
[1728578130453,0.8522799,138.5,138.47,24.027864]
[1728578130967,0.8522799,138.5,138.48,7.221]
[1728578131145,0.8522799,138.5,138.49,1.44382985]
[1728578131464,0.8522799,138.5,138.48,7.221]
[1728578131965,0.8522799,138.5,138.46,18.0552]
[1728578132167,0.8522799,138.5,138.47,7.2216]
[1728578133135,0.8522799,138.5,138.46,25.2774]
[1728578133763,8.0728799,138.5,138.46,18.0552]
[1728578133959,0.8522799,138.5,138.44,21.2375]
[1728578134160,7.2213,138.48,138.44,28.4607]
[1728578134354,0.8522799,138.5,138.44,28.4603]
[1728578134355,7.221,138.49,138.44,28.4603]
[1728578134566,7.221,138.49,138.45,7.2227]
[1728578135469,7.2209,138.49,138.45,7.2227]
[1728578135761,7.2209,138.49,138.44,21.2375]
[1728578135962,7.2209,138.49,138.44,28.4607]
[1728578136855,1.447719,138.49,138.43,25.2823]
[1728578137071,7.2214,138.48,138.44,7.2232]
[1728578137365,7.2214,138.48,138.43,18.0587]
[1728578137366,7.2214,138.48,138.43,25.2823]
[1728578138671,18.9030799,138.5,138.41,44.027864]
[1728578138878,18.9030799,138.5,138.41,7.2244]
[1728578138879,1.447719,138.49,138.41,7.2244]
[1728578139879,18.0533,138.48,138.4,40.2382]
[1728578140171,7.2234,138.44,138.4,47.4634]
[1728578140371,18.0558,138.46,138.37,33.725]
[1728578140545,1.447719,138.45,138.37,33.725]
[1728578140747,7.2249,138.41,138.37,40.9516]
[1728578140973,7.2247,138.42,138.38,7.2264]
[1728578142248,7.2247,138.42,138.37,33.725]
[1728578142249,1.447719,138.45,138.37,33.725]
[1728578142449,7.2245,138.42,138.38,7.2264]
[1728578142850,7.2245,138.42,138.39,1.44491988]
[1728578143650,1.447719,138.45,138.36,6.6458]
[1728578143651,7.2257,138.4,138.36,6.6458]
[1728578143854,1.447719,138.43,138.35,7.2275]
[1728578144063,1.447719,138.43,138.34,15.495]
[1728578144268,7.225,138.41,138.37,7.2266]
[1728578145655,7.2245,138.42,138.38,8.67100728]
[1728578146152,7.2245,138.42,138.38,7.226]
[1728578146350,7.2268,138.38,138.33,25.3009]
[1728578146569,7.2268,138.38,138.34,7.2284]
[1728578146761,7.226,138.39,138.35,7.2279]
[1728578147151,7.2261,138.39,138.35,7.2279]
[1728578153052,1.447719,138.43,138.37,18.0669]
[1728578153275,25.558319,138.46,138.37,18.0669]
[1728578153668,7.2243,138.42,138.38,7.226]
[1728578153971,25.558319,138.46,138.39,18.0646]
[1728578154169,7.2229,138.45,138.41,7.2248]
[1728578154369,1.447719,138.48,138.42,1.44465635]
[1728578154581,7.2222,138.47,138.43,7.2238]
[1728578154782,0.8522799,138.5,138.44,1.69548054]
[1728578155090,0.8522799,138.5,138.45,23.776884]
[1728578155393,0.8522799,138.5,138.46,8.66606407]
[1728578155561,7.2209,138.49,138.46,1.44418735]
[1728578156382,7.2209,138.49,138.45,25.2788]
[1728578156767,0.8522799,138.5,138.43,7.2237]
[1728578157082,0.8522799,138.5,138.4,7.225]
[1728578157083,7.2232,138.45,138.4,7.225]
[1728578157587,7.2232,138.45,138.41,7.2247]
[1728578158269,7.2234,138.44,138.4,7.2253]
[1728578158468,16.457319,138.48,138.39,25.2896]
[1728578158469,7.2241,138.43,138.39,25.2896]
[1728578158697,7.2241,138.43,138.39,18.0639]
[1728578159267,7.2247,138.42,138.38,6.1014]
[1728578160192,18.0573,138.45,138.37,7.2268]
[1728578160392,18.0573,138.45,138.36,18.068]
[1728578160393,1.447719,138.44,138.38,8.67118967]
[1728578160597,7.224,138.43,138.38,8.67118967]
[1728578160806,7.2244,138.42,138.38,7.2263]
[1728578161010,7.2252,138.41,138.37,7.2268]
[1728578161496,7.2252,138.41,138.38,1.4450408]
[1728578161681,7.2244,138.42,138.38,8.6714408]
[1728578162005,1.447719,138.46,138.38,1.4450408]
[1728578162213,7.2229,138.45,138.41,7.2247]
[1728578162403,7.2226,138.46,138.42,1.44459278]
[1728578162578,7.2218,138.47,138.43,7.2237]
[1728578162776,7.2218,138.47,138.44,1.4444787]
[1728578163678,7.2213,138.48,138.44,8.6676787]
[1728578164581,2.2999989,138.5,138.44,1.4444787]
[1728578164780,7.2212,138.48,138.44,7.2231]
[1728578165010,7.221,138.49,138.45,8.66703427]
[1728578165310,7.2212,138.48,138.45,1.44433427]
[1728578165617,7.2207,138.49,138.45,8.66693427]
[1728578166306,8.0725799,138.5,138.46,7.2222]
[1728578166495,8.0725799,138.5,138.47,1.44409604]
[1728578166688,0.8522799,138.5,138.47,8.66579604]
[1728578167387,0.8522799,138.5,138.48,7.2212]
[1728578167587,0.8522799,138.5,138.49,1.44400041]
[1728578167808,0.8522799,138.5,138.49,1.44399677]
[1728578168186,0.8522799,138.5,138.49,8.66469677]
[1728578169577,0.8522799,138.5,138.49,7.2207]
[1728578170911,0.8522799,138.5,138.48,18.0529]
[1728578171207,0.8522799,138.5,138.47,16.2063]
[1728578171411,8.0727799,138.5,138.47,16.2063]
[1728578172406,7.2213,138.48,138.45,18.056]
[1728578172614,7.2213,138.48,138.46,1.44426035]
[1728578173110,0.8522799,138.5,138.46,1.44426035]
[1728578173489,0.8522799,138.5,138.45,18.056]
[1728578173679,7.2208,138.49,138.45,25.2785]
[1728578174008,7.2208,138.49,138.46,1.44414755]
[1728578174305,7.2208,138.49,138.45,25.2785]
[1728578174488,7.2215,138.48,138.45,18.056]
[1728578175106,7.2215,138.48,138.44,7.2233]
[1728578175313,7.2209,138.49,138.45,8.66697297]
[1728578175815,8.0726799,138.5,138.46,7.2222]
[1728578175993,8.0726799,138.5,138.47,1.44406102]
[1728578176808,8.0726799,138.5,138.46,7.2222]
[1728578178618,8.0726799,138.5,138.47,1.44409645]
[1728578179510,0.8522799,138.5,138.47,1.44409645]
[1728578179708,0.8522799,138.5,138.49,7.2207]
[1728578179892,0.8522799,138.5,138.49,1.44386072]
[1728578181415,0.8522799,138.5,138.48,25.2739]
[1728578181600,8.0724799,138.5,138.46,7.2222]
[1728578181912,0.8522799,138.5,138.45,18.0558]
[1728578182212,0.8522799,138.5,138.45,25.2785]
[1728578182419,7.221,138.49,138.45,25.2785]
[1728578182593,7.221,138.49,138.45,18.0558]
[1728578182788,7.221,138.49,138.46,8.66632529]
[1728578183097,0.8522799,138.5,138.46,8.66632529]
[1728578183296,0.8522799,138.5,138.46,7.2222]
[1728578183697,7.2208,138.49,138.45,25.2783]
[1728578184602,7.2213,138.48,138.45,25.2783]
[1728578184812,7.2211,138.49,138.45,25.2783]
[1728578185520,0.8522799,138.5,138.45,18.0558]
[1728578185697,7.2213,138.48,138.45,18.0558]
[1728578186099,7.2209,138.49,138.45,25.2786]
[1728578186313,7.2209,138.49,138.46,1.44418273]
[1728578186727,7.2209,138.49,138.45,25.2786]
[1728578186910,7.2209,138.49,138.46,1.44418644]
[1728578187603,0.8522799,138.5,138.43,22.1106]
[1728578188124,7.2219,138.47,138.43,29.334]
[1728578188296,7.2219,138.47,138.43,22.1106]
[1728578188506,7.2219,138.47,138.44,7.2232]
[1728578189128,20.3508989,138.5,138.42,18.0597]
[1728578189319,7.2225,138.46,138.43,1.44451964]
[1728578189525,7.2225,138.46,138.42,25.2836]
[1728578189711,7.223,138.45,138.42,18.0597]
[1728578190024,1.447719,138.48,138.4,23.2409]
[1728578190228,7.2243,138.42,138.39,25.2897]
[1728578190529,7.2239,138.43,138.39,25.2897]
[1728578191204,7.2239,138.43,138.4,1.4447644]
[1728578191924,7.2228,138.45,138.41,25.2867]
[1728578192109,7.2237,138.44,138.4,7.2253]
[1728578192305,7.2237,138.44,138.37,6.5821]
[1728578192306,1.447719,138.43,138.38,18.0651]
[1728578192505,7.225,138.41,138.38,7.2264]
[1728578192727,7.2245,138.42,138.39,1.44488284]
[1728578192912,7.2245,138.42,138.38,7.2264]
[1728578193303,7.2258,138.4,138.36,23.8862]
[1728578193802,1.447719,138.44,138.37,1.44510506]
[1728578194019,7.2249,138.41,138.37,7.2268]
[1728578194221,7.2249,138.41,138.36,34.7272]
[1728578194425,7.2249,138.41,138.36,41.9545]
[1728578194739,0.25098,138.39,138.3,6.1759]
[1728578194907,7.2282,138.35,138.3,31.483]
[1728578195100,7.2286,138.34,138.3,31.483]
[1728578195727,7.229,138.33,138.29,22.2926]
[1728578196028,7.23,138.32,138.27,18.0797]
[1728578196334,17.717119,138.35,138.28,1.44597202]
[1728578196513,8.675719,138.36,138.31,7.2297]
[1728578196714,7.228,138.36,138.31,7.2297]
[1728578196927,7.2286,138.34,138.29,18.0774]
[1728578197630,7.2286,138.34,138.29,25.3084]
[1728578197805,1.447719,138.35,138.29,25.3084]
[1728578198005,7.2292,138.33,138.29,25.3084]
[1728578198620,23.902374,138.35,138.26,24.2569]
[1728578198810,1.447719,138.34,138.26,24.2569]
[1728578199011,7.2301,138.31,138.26,31.4892]
[1728578199318,7.2301,138.31,138.26,24.2569]
[1728578199514,7.2291,138.33,138.29,7.2311]
[1728578200139,7.2291,138.33,138.29,8.67710091]
[1728578201324,8.677319,138.32,138.28,18.0785]
[1728578201921,7.2304,138.31,138.26,13.4084]
[1728578202434,0.12549,138.34,138.26,13.4084]
[1728578202642,7.2307,138.3,138.26,13.4084]
[1728578203029,1.447719,138.33,138.26,7.62215833]
[1728578203214,7.2301,138.31,138.27,7.2321]
[1728578203633,7.2308,138.3,138.26,13.4085]
[1728578203814,7.2308,138.3,138.25,25.3157]
[1728578203815,8.678519,138.3,138.25,25.3157]
[1728578204836,1.447719,138.3,138.26,1.44627906]
[1728578205045,8.677419,138.32,138.27,7.2318]
[1728578205344,8.677419,138.32,138.28,1.44612303]
[1728578206031,8.677419,138.32,138.27,7.2318]
[1728578206930,0.12549,138.36,138.28,24.3373918]
[1728578206931,1.447719,138.36,138.28,24.3373918]
[1728578207240,7.2289,138.34,138.3,25.3067]
[1728578207416,7.2289,138.34,138.31,1.44584419]
[1728578208536,1.447719,138.36,138.31,1.44584419]
[1728578208911,1.447719,138.39,138.31,1.44584419]
[1728578209529,7.2277,138.36,138.32,7.2292]
[1728578209844,7.2277,138.36,138.33,1.44566593]
[1728578210035,7.227,138.37,138.33,8.67456593]
[1728578211819,7.2275,138.36,138.32,25.303]
[1728578212042,7.2275,138.36,138.33,1.4455833]
[1728578213125,7.2271,138.37,138.33,8.6745833]
[1728578214442,8.673819,138.39,138.35,7.2275]
[1728578214642,7.2261,138.39,138.36,1.44533335]
[1728578215821,1.447719,138.41,138.36,1.44533335]
[1728578216029,8.672719,138.41,138.37,8.67208999]
[1728578216348,8.671719,138.43,138.39,7.2259]
[1728578216555,7.2254,138.4,138.36,7.2273]
[1728578216724,7.2254,138.4,138.37,1.44517391]
[1728578217238,7.225,138.41,138.37,8.67207391]
[1728578217543,1.447719,138.43,138.37,19.51217391]
[1728578217752,7.224,138.43,138.39,7.2256]
[1728578217934,1.447719,138.45,138.4,8.67032316]
[1728578218140,8.670619,138.45,138.41,7.2248]
[1728578218528,8.89849863,138.46,138.42,8.66906648]
[1728578218529,8.670119,138.46,138.42,8.66906648]
[1728578218834,7.2224,138.46,138.42,8.66906648]
[1728578219145,7.2219,138.47,138.43,7.2238]
[1728578219329,7.2219,138.47,138.44,1.44446162]
[1728578220055,7.2213,138.48,138.44,8.66766162]
[1728578220347,7.2208,138.49,138.45,7.2227]
[1728578220534,7.2213,138.48,138.44,8.66766162]
[1728578220741,7.2217,138.47,138.43,25.283]
[1728578220955,2.2999989,138.5,138.43,18.0593]
[1728578221127,7.2223,138.46,138.42,7.2243]
[1728578221741,7.2218,138.47,138.43,7.2238]
[1728578222255,7.2212,138.48,138.44,8.66759292]
[1728578222949,2.2999989,138.5,138.44,19.50239292]
[1728578223251,7.2212,138.49,138.44,25.2811]
[1728578223622,1.447719,138.49,138.44,18.058]
[1728578223841,7.2219,138.47,138.44,18.058]
[1728578224548,0.8522799,138.5,138.44,18.058]
[1728578224735,7.2213,138.48,138.44,25.2812]
[1728578226641,1.447719,138.47,138.41,39.7953]
[1728578226839,1.447719,138.49,138.41,39.7953]
[1728578227236,7.2228,138.45,138.41,47.0198]
[1728578228052,1.447719,138.49,138.41,47.0198]
[1728578228053,7.2223,138.46,138.42,7.2242]
[1728578229358,7.2228,138.45,138.41,47.02]
[1728578229545,1.447719,138.44,138.38,18.0652]
[1728578229861,7.224,138.43,138.39,8.67040922]
[1728578230166,1.447719,138.45,138.39,1.44480922]
[1728578230333,18.059,138.44,138.37,6.572]
[1728578230537,1.447719,138.43,138.37,6.572]
[1728578230739,1.447719,138.43,138.37,13.7986]
[1728578230740,7.225,138.41,138.37,13.7986]
[1728578230955,1.447719,138.43,138.37,6.572]
[1728578231364,7.2249,138.41,138.37,13.7989]
[1728578231542,7.2249,138.41,138.38,1.44507758]
[1728578231947,7.2249,138.41,138.37,7.2269]
[1728578232148,7.2245,138.42,138.38,7.2263]
[1728578232454,8.671119,138.44,138.4,7.2254]
[1728578232657,7.2234,138.44,138.41,1.44482657]
[1728578232956,8.670519,138.46,138.41,8.66962657]
[1728578233258,7.2229,138.45,138.41,8.66962657]
[1728578233642,7.2233,138.44,138.41,1.44482657]
[1728578233967,7.2233,138.44,138.4,7.2252]
[1728578234453,1.447719,138.47,138.39,25.2904]
[1728578234655,7.224,138.43,138.39,25.2906]
[1728578234857,7.2234,138.44,138.4,8.67012613]
[1728578235033,7.2246,138.42,138.38,7.2264]
[1728578235660,7.2249,138.41,138.37,7.2268]
[1728578236037,7.2246,138.42,138.38,8.67135911]
[1728578236239,7.2239,138.43,138.39,7.2259]
[1728578236535,7.2239,138.43,138.4,1.44482956]
[1728578238664,7.2239,138.43,138.38,18.066]
[1728578238665,7.2243,138.42,138.38,18.066]
[1728578238845,7.2243,138.42,138.38,25.2922]
[1728578239361,7.2249,138.41,138.38,18.066]
[1728578241448,7.2245,138.42,138.38,25.2924]
[1728578243543,7.225,138.41,138.38,18.066]
[1728578243941,1.447719,138.45,138.38,25.2924]
[1728578244145,7.2247,138.42,138.38,25.2924]
[1728578244769,7.2249,138.41,138.38,25.2924]
[1728578245266,7.2254,138.4,138.36,7.2273]
[1728578245972,1.447719,138.43,138.37,1.44507961]
[1728578246276,7.2251,138.41,138.37,8.67197961]
[1728578246767,7.2245,138.42,138.38,7.2264]
[1728578247095,7.2245,138.42,138.39,1.4449243]
[1728578247245,7.2245,138.42,138.38,7.2264]
[1728578247443,1.447719,138.41,138.35,41.972374]
[1728578247673,7.225,138.41,138.38,7.2263]
[1728578247846,7.225,138.41,138.38,1.44508603]
[1728578249279,7.226,138.39,138.34,40.8035]
[1728578249569,18.061,138.42,138.35,7.2278]
[1728578249749,18.061,138.42,138.36,1.4452106]
[1728578249750,7.2259,138.39,138.36,1.4452106]
[1728578250542,7.2257,138.4,138.36,8.6726106]
[1728578251180,1.447719,138.39,138.34,48.0319]
[1728578251359,18.0636,138.4,138.32,18.0739]
[1728578251675,7.2278,138.36,138.33,7.229]
[1728578252076,7.2278,138.36,138.32,25.3033]
[1728578253269,1.447719,138.39,138.34,18.0711]
[1728578253576,7.2261,138.39,138.35,8.67329803]
[1728578254277,1.447719,138.41,138.35,1.44529803]
[1728578254485,7.2251,138.41,138.37,7.2269]
[1728578254655,7.2251,138.41,138.37,8.6720454]
[1728578255178,7.2251,138.41,138.37,7.2269]
[1728578255475,1.447719,138.42,138.36,25.2959]
[1728578255679,7.2259,138.39,138.36,25.2959]
[1728578255859,7.2259,138.39,138.36,18.0685]
[1728578256255,1.447719,138.42,138.35,7.2278]
[1728578256486,18.18799,138.41,138.33,18.0719]
[1728578256655,18.18799,138.41,138.31,16.5691]
[1728578256656,7.2288,138.34,138.31,16.5691]
[1728578256858,7.2283,138.35,138.31,23.7991]
[1728578257480,1.447719,138.37,138.31,16.5691]
[1728578257858,1.447719,138.37,138.3,6.4452]
[1728578258056,1.447719,138.37,138.29,25.3078]
[1728578258057,18.0689,138.36,138.29,25.3078]
[1728578258376,7.2296,138.32,138.29,18.077]
[1728578258588,7.2301,138.31,138.28,16.2543]
[1728578258768,7.2296,138.32,138.28,23.4859]
[1728578259369,7.2296,138.32,138.29,1.4459979]
[1728578259572,1.447719,138.35,138.29,1.4459979]
[1728578259759,7.2291,138.33,138.29,8.6769979]
[1728578259954,1.447719,138.35,138.29,1.4459979]
[1728578260263,7.2285,138.34,138.3,25.3065]
[1728578260473,7.2285,138.34,138.31,1.44581575]
[1728578260676,7.2282,138.35,138.31,8.67571575]
[1728578261185,7.2286,138.34,138.3,25.3068]
[1728578261383,1.447719,138.37,138.31,1.44575109]
[1728578261594,7.2281,138.35,138.31,8.67575109]
[1728578261760,7.2286,138.34,138.31,1.44575109]
[1728578261960,7.2291,138.33,138.3,18.0763]
[1728578262661,7.2291,138.33,138.3,19.52218032]
[1728578263369,7.2289,138.34,138.3,25.3068]
[1728578266473,19.515319,138.37,138.3,25.3068]
[1728578266474,1.447719,138.37,138.32,7.2295]
[1728578266675,7.2266,138.38,138.34,7.2282]
[1728578266881,7.2272,138.37,138.33,8.67418368]
[1728578267774,8.673719,138.39,138.35,7.2279]
[1728578268084,1.447719,138.42,138.35,8.67328595]
[1728578268382,7.2265,138.38,138.35,8.67328595]
[1728578269762,7.2261,138.39,138.35,8.67328595]
[1728578269966,7.2255,138.4,138.36,18.0686]
[1728578270167,7.2255,138.4,138.37,8.67206126]
[1728578270382,7.2252,138.41,138.37,8.67206126]
[1728578270566,8.672219,138.42,138.38,7.2263]
[1728578270771,7.2245,138.42,138.39,1.4450173]
[1728578271594,7.2241,138.43,138.39,8.6708173]
[1728578271996,8.671019,138.44,138.4,7.2252]
[1728578272290,7.2239,138.43,138.39,8.6707173]
[1728578272698,7.2239,138.43,138.4,7.2254]
[1728578272871,7.2235,138.44,138.41,1.44481332]
[1728578273188,1.447719,138.45,138.41,26.73141332]
[1728578273189,8.670519,138.45,138.41,26.73141332]
[1728578273398,1.447719,138.48,138.41,35.96701332]
[1728578273775,7.2221,138.47,138.43,7.2237]
[1728578273998,7.2221,138.47,138.44,1.44452018]
[1728578274991,7.2221,138.47,138.43,7.2237]
[1728578275187,7.2221,138.47,138.44,1.44452626]
[1728578277116,7.2221,138.47,138.43,7.2237]
[1728578277302,1.447719,138.46,138.41,34.5222]
[1728578277479,7.2235,138.44,138.4,7.2252]
[1728578279100,7.2239,138.43,138.39,7.2259]
[1728578279401,8.672419,138.42,138.38,41.123]
[1728578279577,18.055,138.47,138.38,41.123]
[1728578279578,7.224,138.43,138.39,1.44480531]
[1728578279781,7.224,138.43,138.39,8.67040531]
[1728578280498,7.224,138.43,138.39,7.2256]
[1728578280703,7.2235,138.44,138.4,7.225]
[1728578280879,1.447719,138.46,138.4,18.0629]
[1728578280880,7.223,138.45,138.4,18.0629]
[1728578281278,7.2233,138.44,138.4,25.2881]
[1728578281478,7.2229,138.45,138.41,7.2248]
[1728578281698,1.447719,138.46,138.4,18.0629]
[1728578281699,7.2233,138.44,138.4,25.2881]
[1728578282112,1.447719,138.46,138.38,23.0579]
[1728578282406,7.2242,138.43,138.39,7.2259]
[1728578283076,7.2242,138.43,138.4,1.44488031]
[1728578283273,7.2247,138.42,138.38,30.2843]
[1728578283498,33.2307,138.45,138.37,18.0665]
[1728578283700,1.447719,138.44,138.37,18.0665]
[1728578284008,7.2245,138.42,138.38,8.67135079]
[1728578284678,7.2245,138.42,138.38,7.2264]
[1728578285084,7.2249,138.41,138.38,7.2264]
[1728578285700,7.2249,138.41,138.37,25.2933]
[1728578286003,1.447719,138.44,138.37,18.0665]
[1728578286206,1.447719,138.44,138.38,7.2261]
[1728578286207,7.2244,138.42,138.38,7.2261]
[1728578287287,1.447719,138.41,138.37,18.0665]
[1728578287597,7.2252,138.41,138.37,18.0665]
[1728578287797,1.447719,138.44,138.38,1.44501009]
[1728578287987,7.2235,138.44,138.4,7.225]
[1728578288306,7.2229,138.45,138.41,7.2245]
[1728578288517,7.2233,138.44,138.4,7.2253]
[1728578289087,7.223,138.45,138.41,7.2248]
[1728578289311,1.447719,138.45,138.39,18.0644]
[1728578289509,7.2234,138.44,138.4,7.2253]
[1728578290929,7.2239,138.43,138.39,25.2901]
[1728578291099,1.447719,138.42,138.36,18.0675]
[1728578291293,20.0,138.47,138.37,7.2269]
[1728578291294,7.2254,138.41,138.37,7.2269]
[1728578291503,1.447719,138.4,138.35,6.4636]
[1728578291707,7.2277,138.36,138.33,18.0716]
[1728578292020,7.2275,138.36,138.33,18.0716]
[1728578292711,21.447719,138.39,138.31,6.5739]
[1728578292899,7.2276,138.36,138.32,7.2291]
[1728578293096,21.447719,138.39,138.33,1.44558859]
[1728578293417,21.447719,138.41,138.32,58.12262351]
[1728578293719,7.2257,138.4,138.36,25.2955]
[1728578293896,7.2265,138.38,138.34,7.2284]
[1728578295015,7.226,138.39,138.35,7.2279]
[1728578295901,20.0,138.41,138.33,18.0717]
[1728578295902,1.447719,138.38,138.33,18.0717]
[1728578296125,7.2274,138.37,138.33,25.3007]
[1728578296303,7.2265,138.38,138.34,8.673879]
[1728578296505,7.227,138.37,138.33,25.3006]
[1728578297215,1.447719,138.36,138.31,13.8036]
[1728578297398,7.2277,138.36,138.32,7.2294]
[1728578297595,7.2266,138.38,138.34,7.2285]
[1728578297923,7.2266,138.38,138.35,1.44540661]
[1728578299415,21.447719,138.41,138.34,0.12549]
[1728578299722,7.2257,138.4,138.36,7.2272]
[1728578299922,8.673019,138.41,138.37,8.67206572]
[1728578301012,7.224,138.43,138.38,19.51106658]
[1728578301217,7.2245,138.42,138.38,25.2921]
[1728578301808,7.2245,138.42,138.39,1.44496254]
[1728578302002,21.447719,138.44,138.39,8.67086813]
[1728578302210,21.447719,138.44,138.39,1.44496813]
[1728578302436,7.2237,138.44,138.4,7.2253]
[1728578302724,21.447719,138.45,138.4,7.2253]
[1728578302725,8.670719,138.45,138.41,8.66966582]